Cogmind - Beta 15 @@@ ROGUE MODE // 2025.05.27 @ 18:53:12 Player: Elias Result: Core destroyed Performance ------------- Evolutions (1) 500 Regions Visited (2) 400 Robots Destroyed (30) 150 Value Destroyed (563) 563 Prototype IDs (0) 0 Alien Tech Used (0) 0 Bonus (0) 0 TOTAL SCORE: 1613 Bonus ------- None Cogmind --------- Core Integrity 0/400 Matter 300/300 Energy 124/125 System Corruption 3% Temperature Critical (553) Movement Treading (160) Location -9/Materials Parts ------- > --- POWER (1) -------- Light Ion Engine > --- PROPULSION (2) --- Light Treads Light Treads > --- UTILITY (4) ------ Small Storage Unit Light Armor Plating Medium Armor Plating > --- WEAPON (2) ------- Particle Gun Heavy Assault Rifle > --- INVENTORY (8) ---- Ion Engine Aluminum Leg Aluminum Leg Light Armor Plating Beam Rifle Rocket Launcher Mining Laser Peak State ------------ > --- POWER ------------ Light Ion Engine > --- PROPULSION ------- Light Treads Light Treads > --- UTILITY ---------- Small Storage Unit Light Armor Plating Medium Armor Plating Medium Armor Plating > --- WEAPON ----------- Particle Gun Heavy Assault Rifle > --- INVENTORY -------- Ion Engine Aluminum Leg Aluminum Leg Light Armor Plating Rocket Launcher Mining Laser [Rating: 13] Favorites ----------- Power Light Ion Engine Engine Light Ion Engine Propulsion Aluminum Leg Treads Light Treads Leg Aluminum Leg Utility Small Storage Unit Device Seismic Detector Storage Small Storage Unit Protection Medium Armor Plating Weapon Particle Gun Energy Gun Particle Gun Ballistic Gun Light Assault Rifle Launcher Rocket Launcher Special Weapon Mining Laser Build | -11 -10 -9 ------- Run | Yrd Mat Mat Slots Evolved 2 | . . 2 Power . | . . . Propulsion . | . . . Utility 2 | . . 2 Weapon . | . . . Parts Attached 17 | 6 3 8 Power 1 | 1 . . Engine 1 | 1 . . Core . | . . . Reactor . | . . . Propulsion 4 | 2 . 2 Treads 2 | . . 2 Leg 2 | 2 . . Wheel . | . . . Hover . | . . . Flight . | . . . Utility 6 | 2 . 4 Device 1 | 1 . . Storage 1 | 1 . . Processor . | . . . Hackware . | . . . Protection 4 | . . 4 Artifact . | . . . Weapon 6 | 1 3 2 Energy Gun 2 | . 2 . Energy Cannon . | . . . Ballistic Gun 2 | 1 . 1 Ballistic Cannon . | . . . Launcher 1 | . . 1 Special Weapon 1 | . 1 . Impact Weapon . | . . . Slashing Weapon . | . . . Piercing Weapon . | . . . Special Melee Weapon . | . . . Unidentified Prototypes . | . . . Parts Lost 5 | . . 5 Power . | . . . Propulsion 1 | . . 1 Utility 3 | . . 3 Weapon 1 | . . 1 Highest Loss Streak 2 | . . 2 To Critical Strikes . | . . . Average Backups 6 | 4 7 7 Power . | . 1 1 Propulsion 2 | 1 2 2 Utility . | . . 1 Weapon 2 | 2 4 2 Tool/Special . | . . . Unused Backups 7 | . 3 4 Power 1 | . . 1 Propulsion 1 | . . 1 Utility 1 | . . 1 Weapon 4 | . 3 1 Tool/Special . | . . . Average Slot Usage (%) 90 | . 97 87 Engine 11 | . 14 11 Treads 5 | . . 8 Leg 17 | . 28 13 Device 5 | . 14 1 Storage 11 | . 14 11 Protection 14 | . . 20 Energy Gun 13 | . 18 11 Ballistic Gun 8 | . 5 9 Peak Build Rating 13 | 6 9 13 Average Rating 9 | 4 8 10 On Entrance 5 | . 6 9 Naked Turns . | . . . Heaviest Build 31 | 10 15 31 Greatest Support 40 | 20 20 40 Greatest Overweight (x) 2 | . . 2 Average Overweight (x) . | . . . Largest Inventory Capacity 8 | 8 8 8 Average Capacity 7 | 7 8 8 Most Carried 8 | 7 8 8 Average Carried 6 | 4 7 7 Final Capacity 8 | 8 8 8 Final Carried 8 | 6 8 7 Class Distribution -------------------- 100% | Mutant Dominant Class ---------------- Mutant | -10/Materials Mutant | -9/Materials Resources | -11 -10 -9 ----------- Run | Yrd Mat Mat Matter Collected 629 | 296 . 333 Remotely . | . . . Salvage Created 888 | 201 . 687 Parts 59 | 16 . 43 Haulers Intercepted . | . . . Recyclers Shooed 3 | 1 . 2 Parts Field Recycled . | . . . Retrieved Matter . | . . . Parts Self-Destructed . | . . . Prevented . | . . . Kills | -11 -10 -9 ------- Run | Yrd Mat Mat Combat Hostiles Destroyed 14 | . . 14 Guns 9 | . . 9 AOE 5 | . . 5 Classes Destroyed 9 | 3 . 6 Worker 6 | 2 . 4 Builder 2 | . . 2 Tunneler 4 | 4 . . Recycler 3 | 1 . 2 Watcher 1 | . . 1 Swarmer 3 | . . 3 Grunt 5 | . . 5 Brawler 2 | . . 2 Sentry 4 | . . 4 Best Kill Streak 7 | 7 . 7 Combat Bots Only 3 | . . 3 Max Kills in Single Turn 3 | 1 . 3 Gunslinging . | . . . Exploded 2 | . . 2 Melee . | . . . Uniques/NPCs Destroyed . | . . . Combat | -11 -10 -9 -------- Run | Yrd Mat Mat Hostile Shots Fired 73 | . . 73 Missed 15 | . . 15 Hits 58 | . . 58 Melee 1 | . . 1 Projectile 57 | . . 57 Damage Taken 1232 | . . 1232 Core 436 | . . 436 Absorbed by Shields . | . . . Core Remaining (%) 100 | 100 100 . Volleys Fired 86 | 36 4 46 Largest 2 | 1 2 2 Hottest 130 | 20 130 130 Shots Fired 129 | 36 6 87 Gun 121 | 36 4 81 Cannon . | . . . Launcher 5 | . . 5 Special 3 | . 2 1 Kinetic 74 | 36 . 38 Thermal 50 | . 6 44 Explosive 5 | . . 5 Electromagnetic . | . . . Robot Hit Streak 11 | 11 1 11 Robot Miss Streak 3 | 2 1 3 Penetration Max . | . . . Secondary Targets . | . . . Shots Hit Robots 88 | 30 2 56 Core Hits 51 | 15 . 36 Critical Kills . | . . . Critical Parts Destroyed . | . . . Critical Strikes 2 | . . 2 Burn 2 | . . 2 Melee Attacks . | . . . Impact . | . . . Slashing . | . . . Piercing . | . . . Sneak Attacks . | . . . Combat Hostiles . | . . . Follow-up Attacks . | . . . Damage Inflicted 1517 | 251 31 1235 Guns 1021 | 251 31 739 Cannons . | . . . Explosions 496 | . . 496 Melee . | . . . Ramming . | . . . Kinetic 544 | 251 . 293 Thermal 477 | . 31 446 Explosive 496 | . . 496 Electromagnetic . | . . . Impact . | . . . Slashing . | . . . Piercing . | . . . Highest Corruption 3 | . . 3 Average Corruption 3 | . . 3 Corruption Purged . | . . . Corruption Blocked . | . . . Effects 8 | . . 8 Message Errors 1 | . . 1 Matter Fused 1 | . . 1 Heat Flow Errors 2 | . . 2 Parts Rejected 1 | . . 1 Data Loss (major) 3 | . . 3 Overload Shots . | . . . Overflow Damage 16 | . . 16 Projectiles . | . . . Explosions 16 | . . 16 Melee . | . . . Knockbacks . | . . . Impact . | . . . Kinetic . | . . . Secondary . | . . . Self-Inflicted Damage 138 | . . 138 Shots 3 | . . 3 Rammed . | . . . Targets Rammed . | . . . Kicked . | . . . Crushed . | . . . Highest Temperature 553 | . 138 553 Average Temperature 179 | . 49 191 Received Heat Transfer 231 | . . 231 Effects 9 | . . 9 Shutdowns 1 | . . 1 Interference 2 | . . 2 Damage (minor) 2 | . . 2 Damage (major) 3 | . . 3 Damage (core) 1 | . . 1 Siege Activations . | . . . Martial Activations . | . . . Shielding Activations . | . . . Robots Disrupted . | . . . Combat Hostiles . | . . . Robots Corrupted . | . . . Combat Hostiles . | . . . Parts Fried . | . . . Impact Corruptions . | . . . Robots Melted . | . . . Combat Hostiles . | . . . Parts Melted 2 | . . 2 Heat Transferred 1295 | . 74 1221 Parts Sabotaged . | . . . Parts Stolen . | . . . Parts Stripped . | . . . Power Chain Reactions . | . . . Alert | -11 -10 -9 ------- Run | Yrd Mat Mat Maximum Alert Level 1 | . . 1 Low Security (%) 70 | 100 100 46 Level 1 29 | . . 53 Level 2 . | . . . Level 3 . | . . . Level 4 . | . . . Level 5 . | . . . High Security . | . . . Max Security . | . . . Peak Influence 296 | 10 8 296 Initial . | . . . Average 93 | 2 . 170 Influence Increases 579 | 35 10 534 Destroy 0b10 Robot/C 280 | . . 280 Destroy 0b10 Robot/NC 80 | 35 . 45 Destroy Leader 82 | . . 82 Successful Hack 8 | . 8 . Disable Machine 30 | . . 30 Destroy Structure 39 | . 2 37 Partial Spotted 15 | . . 15 Lose Combat Pursuer 45 | . . 45 Influence Decreases 283 | 35 10 238 Time Decay 233 | 35 10 188 Lost Part 50 | . . 50 Squads Dispatched 1 | . 1 . Investigation . | . . . Extermination . | . . . Reinforcement 1 | . 1 . Assault . | . . . Garrison . | . . . Intercept . | . . . Searches Triggered . | . . . Construction Impeded . | . . . Haulers Reinforced . | . . . Active Scanning Responses . | . . . Cargo Convoy Interrupts . | . . . Stealth | -11 -10 -9 --------- Run | Yrd Mat Mat Distress Signals 2 | . . 2 Communications Jammed . | . . . Distress Signals . | . . . Times Spotted 24 | . 3 21 Peak Tracking Total 5 | . 2 5 Tactical Retreats 1 | . . 1 Traps | -11 -10 -9 ------- Run | Yrd Mat Mat Traps Triggered . | . . . Indirectly . | . . . Trap Hack Attempts . | . . . Triggered . | . . . Disarmed . | . . . Reprogrammed . | . . . Reused . | . . . Traps Extracted . | . . . Installed . | . . . Triggered . | . . . Machines | -11 -10 -9 ---------- Run | Yrd Mat Mat Machines Disabled 2 | . . 2 Max in Single Turn 1 | . . 1 Machines Repaired . | . . . Machines Dismantled . | . . . Machines Sabotaged . | . . . Overloaded Fab Kills . | . . . Hacking | -11 -10 -9 --------- Run | Yrd Mat Mat Machines Accessed 2 | . 2 . Terminals 2 | . 2 . Fabricators . | . . . Repair Stations . | . . . Recycling Units . | . . . Scanalyzers . | . . . Garrison Access . | . . . Total Hacks 3 | . 3 . Successful 1 | . 1 . Failed 2 | . 2 . Catastrophic 2 | . 2 . Database Lockouts . | . . . Manual . | . . . Terminals 3 | . 3 . Fabricators . | . . . Repair Stations . | . . . Recycling Units . | . . . Scanalyzers . | . . . Garrison Access . | . . . Terminal Hacks 1 | . 1 . Level Access Points 1 | . 1 . Fabricator Hacks . | . . . Repair Station Hacks . | . . . Recycling Unit Hacks . | . . . Scanalyzer . | . . . Garrison Access Hacks . | . . . Unauthorized Hacks . | . . . Terminals . | . . . Fabricators . | . . . Repair Stations . | . . . Recycling Units . | . . . Scanalyzers . | . . . Garrison Access . | . . . Data Cores Recovered . | . . . Used . | . . . Hacking Detections 1 | . 1 . Full Trace Events . | . . . Feedback Events . | . . . Feedback Blocked . | . . . Robot Schematics Acquired . | . . . Robots Built . | . . . Authchips . | . . . Time . | . . . Total Robot Build Rating . | . . . Part Schematics Acquired . | . . . Parts Built . | . . . Authchips . | . . . Time . | . . . Total Part Build Rating . | . . . Parts Repaired . | . . . Time . | . . . Parts Recycled . | . . . Recycled Matter . | . . . Retrieved Matter . | . . . Retrieved Components . | . . . Parts Scanalyzed . | . . . Part Schematics Acquired . | . . . Parts Damaged . | . . . Bothacking | -11 -10 -9 ------------ Run | Yrd Mat Mat Used RIF Installer . | . . . Robots Hacked . | . . . Non-combat . | . . . Combat . | . . . Robot Hacks Applied . | . . . Relay Couplers Released . | . . . Fabnet Peak Effective % . | . . . Robots Rewired . | . . . Allies Hacked . | . . . Hacks Repelled . | . . . Allies | -11 -10 -9 -------- Run | Yrd Mat Mat Total Allies . | . . . Largest Group . | . . . Highest-Rated Group . | . . . Highest-Rated Ally . | . . . Total Orders . | . . . Ally Attacks . | . . . Total Damage . | . . . Kills . | . . . Allies Corrupted . | . . . Allies Melted . | . . . Intel | -11 -10 -9 ------- Run | Yrd Mat Mat Active Infowar (turns) 295 | 45 187 63 Seismic 295 | 45 187 63 Robot Analysis Total . | . . . Derelict Logs Recovered . | . . . Drone Launches . | . . . Drone Recoveries . | . . . Exploration | -11 -10 -9 ------------- Run | Yrd Mat Mat Turns Passed 752 | 153 187 412 Spaces Moved 353 | 67 136 150 Core 13 | 13 . . Treads 38 | . . 38 Legs 302 | 54 136 112 Wheels . | . . . Hover . | . . . Flight . | . . . Fastest Speed 50 | 50 120 120 Average Speed 128 | 106 120 146 Slowest Speed 260 | 120 120 260 Overloaded Moves . | . . . Propulsion Burnouts . | . . . Robots Hopped . | . . . Potential Cave-ins . | . . . Cave-ins Triggered 1 | . . 1 Exploration Rate (%) 16 | 5 25 18 Regions Visited 2 Branch Regions . Pre-discovered Areas . | . . . Known Exits Taken 1 | . 1 . Unknown Exits Taken 1 | 1 . . Scrap Searched . | . . . Spaces Dug 3 | . 2 1 Terrain Destroyed 36 | . 2 34 Melee . | . . . Projectile 3 | . 2 1 AOE 33 | . . 33 Terrain Rammed . | . . . Walls Destroyed . | . . . Machines Disabled . | . . . Actions | -11 -10 -9 --------- Run | Yrd Mat Mat Total 524 | 120 151 253 Wait 34 | . . 34 Move 351 | 66 135 150 Hop . | . . . Pick Up 23 | 12 6 5 Fast Attach 1 | . . 1 Attach 13 | 6 1 6 Detach . | . . . Swap 12 | . 2 10 Drop 4 | . 3 1 Fire 86 | 36 4 46 Melee . | . . . Ram . | . . . Kick . | . . . Crush . | . . . Escape Stasis . | . . . Rewire . | . . . Trap . | . . . Miscellaneous . | . . . Route ------- -11/Scrapyard -10/Materials (discovered 3 exits: *Mat x3) -9/Materials History --------- Turn | Location | Event 8 | -11/Scrapyard | Discovered new exit (range 15) 154 | -11/Scrapyard | Entered Materials 207 | -10/Materials | Identified exit to Materials 310 | -10/Materials | Build established: Mutant 341 | -10/Materials | Entered another Materials area 341 | -9/Materials | Evolved 2 slots: Utility x2 409 | -9/Materials | Crushed by falling debris 458 | -9/Materials | Core integrity fell below 50% 722 | -9/Materials | Core integrity fell below 20% 754 | -9/Materials | Core destroyed Last Messages --------------- 00728_ K-01 Serf destroyed. 00728_ K-01 Serf collects debris. 00729_ Acquired 29 matter. 00729_ U-05 Engineer builds a Door. 00731_ K-01 Serf destroyed. 00732_ Acquired 3 matter. 00735_ R-06 Scavenger collects Ion Engine. 00742_ Overheating: Sml. Storage Unit damaged (-46). 00743_ Atomic Centrifuge disabled. 00743_ R-06 Scavenger destroyed. 00746_ R-06 Scavenger collects Med. Matter Pod. 00749_ Overheating: Particle Gun damaged (-23). 00750_ Power failure, Lgt. Ion Engine shutdown. 00751_ System corrupted: Substantial component data lost. 00752_ R-06 Scavenger destroyed. 00753_ Overheating: Lgt. Armor Plating damaged (-22). 00753_ Overheating: Lgt. Ion Engine damaged (-22). 00753_ Overheating: Particle Gun damaged (-3). 00753_ Extracted 18 matter. 00754_ Overheating: Core damaged (-76). Map ----- +----------------------------------------------------+ | ?????????####################### #???? | | ???????????? ???????# # """ #???? | | ???????????# ???????# # """ """???????? | | ???????????# ???????# # "R """???????? | | ???????????# ???????# # """ """ ?? | | ???????????###???????#########+# ?? | | ???????????????? ?? | | ???????????????????????####### ######T#????????? | | ?????????????????????????????# ###########?????? | | ?????????????????????????????# # #?????? | | ?????????????????????????????# # #?????? | | ????????????????????########## # """""" #?????? | | ????????????????????# # # """""" #?????? | | ????????????????????# + %+ """"" #?????? | | ????????????????????# # #% """""=#?????? | | ????????????????????# # # """""=#?????? | | ????????????????????# ! # # %[!%!#?????? | | ????????????????????# ! [# ########+##?????? | | ????????????????????# # # ####?#!#??????? | | ????????????????????# + # #????#!#??????? | | ???????????? ??????# # # #????#%#??????? | | ??????????? ???########## ###??### ###????? | | ??????????? ########## ##### ##### | | ?????????? = * k | | ?????????? r =%* !*! | | ?????????????"" =! =@%%% | | ?????????????""" ########+## ##### ##### | | ????????????????????# = *%*########???## ##????? | | ????????????????????# %=%#???????????# #?????? | | ????????????????????# """ =#???????????# #?????? | | ????????????????????# """ #???????????# #?????? | | ????????????????????# """ #???????????# #?????? | | ????????????????????# [#???????????# #?????? | | ????????????????????########???????????# #?????? | | ???????????????????????????????????????+ +?????? | | ???????????????????????????????????????# #?????? | | ???????????????????????????????????????? #?????? | | ???????????????????????????????????????? ?????? | | ???????????????????????????????????????? ?????? | | ???????????????????????????????????????? ??????? | | ?????????????????????????????????????????????????? | | ?????????????????????????????????????????????????? | | ?????????????????????????????????????????????????? | | ?????????????????????????????????????????????????? | | ?????????????????????????????????????????????????? | | ?????????????????????????????????????????????????? | | ?????????????????????????????????????????????????? | | ?????????????????????????????????????????????????? | | ?????????????????????????????????????????????????? | | ?????????????????????????????????????????????????? | +----------------------------------------------------+ Best States ------------- Heat Dissipation 28 Energy Generation 10 Energy Capacity 125 Matter Stores 300 Matter Capacity 300 Sight Range 16 Terrain Scan Density 10 Armor Coverage 600 Evasion (%) 55 Recoil Reduction 2 Item Schematics ----------------- None Robot Schematics ------------------ None Fabricated ------------ Nothing Repaired ---------- Nothing Alien Tech Used ----------------- None Achievements -------------- Unlikely Earthworm Challenges ------------ None Game ------ Seed AssembledSkeletonBooster Manual? 0 Play Time 00:10:16 Cumulative 17.2 hours Start 2025.05.27 @ 18:44:43 End 2025.05.27 @ 18:53:12 Sessions 1 Manual Loads 0 Difficulty Rogue Special Mode None Game No. 23 Rogue 23 Adventurer 0 Explorer 0 Win Type - Total 0 Types 0/0/0/0/0/0/0/0/0/0 Lore% 18 Gallery% 20 Achievement% 20 Wizard Run 0 Options --------- Layout 0 ASCII 0 Keyboard 0 Movement Mouse Keybinds 0 Fullscreen 1 Font 18/SmallcapsGlow Map View 76x50 Zoom Use 0% Tactical HUD 1 Map Filters NONE Filters NONE Steam 1 RUN: 5876065e-65b6-4947-8ed5-f3031c693096